bitfinex/quotes_BTCUSD_20241223
["timestamp","ask_amount","ask_price","bid_price","bid_amount"]
[1734956929683,0.00103997,96247.0,96238.0,0.001]
[1734956929904,0.00103997,96247.0,96238.0,0.00564919]
[1734956930133,0.00103997,96247.0,96232.0,0.22100699]
[1734956930351,0.00103997,96247.0,96236.0,0.002]
[1734956930573,8.57e-05,96249.0,96233.0,0.00103904]
[1734956930798,8.57e-05,96249.0,96238.0,0.007]
[1734956931303,8.57e-05,96249.0,96240.0,0.207813]
[1734956931719,8.57e-05,96249.0,96241.0,0.00564555]
[1734956932427,8.57e-05,96249.0,96242.0,0.207809]
[1734956932428,0.001,96247.0,96242.0,0.207809]
[1734956932629,0.001,96247.0,96242.0,0.21345333]
[1734956933301,0.001,96247.0,96243.0,0.00103895]
[1734956933474,0.001,96247.0,96244.0,0.207805]
[1734956933683,0.0001598,96247.0,96245.0,0.0010389]
[1734956933898,0.0001598,96247.0,96245.0,0.00667959]
[1734956934100,0.0061598,96247.0,96245.0,0.0010389]
[1734956934359,0.0061598,96247.0,96246.0,0.00557778]
[1734956934582,0.0041598,96247.0,96246.0,0.00557778]
[1734956935071,0.0071598,96247.0,96246.0,0.00557778]
[1734956935303,0.0031598,96247.0,96246.0,0.00557778]
[1734956935748,0.0081598,96247.0,96245.0,0.00103891]
[1734956935988,0.0081598,96247.0,96246.0,0.00557778]
[1734956936216,0.0101598,96247.0,96246.0,0.00557778]
[1734956936405,0.0071598,96247.0,96244.0,0.207805]
[1734956936703,0.0071598,96247.0,96246.0,0.00557778]
[1734956936929,0.0081598,96247.0,96246.0,0.20883891]
[1734956937145,0.0081598,96247.0,96246.0,0.33917778]
[1734956937620,0.0101598,96247.0,96246.0,0.33917778]
[1734956937853,0.0081598,96247.0,96246.0,0.33917778]
[1734956938283,0.0031598,96247.0,96246.0,0.33917778]
[1734956938497,0.0001598,96247.0,96246.0,0.33917778]
[1734956939201,0.0031598,96247.0,96246.0,0.33917778]
[1734956939431,0.0011598,96247.0,96246.0,0.08317778]
[1734956939655,0.0011598,96247.0,96246.0,0.00557778]
[1734956939892,0.0041598,96247.0,96246.0,0.00557778]
[1734956940119,0.0041598,96247.0,96246.0,0.21337778]
[1734956940341,0.0061598,96247.0,96246.0,0.21337778]
[1734956940781,0.0071598,96247.0,96246.0,0.00557778]
[1734956941233,0.0061598,96247.0,96243.0,0.10554047]
[1734956941478,0.0061598,96247.0,96246.0,0.00556051]
[1734956941708,0.0061598,96247.0,96243.0,0.10554047]
[1734956941946,0.0001598,96247.0,96246.0,0.0055596]
[1734956942168,0.0011598,96247.0,96244.0,0.2088439]
[1734956942384,0.0011598,96247.0,96246.0,0.0055596]
[1734956942616,0.0011598,96247.0,96246.0,0.2078]
[1734956942877,0.0021598,96247.0,96246.0,0.2133596]
[1734956943104,0.0001598,96247.0,96246.0,0.2133596]
[1734956943564,0.0021598,96247.0,96246.0,0.2133596]
[1734956944047,0.0011598,96247.0,96246.0,0.2133596]
[1734956944264,0.0021598,96247.0,96246.0,0.2133596]
[1734956944487,0.0021598,96247.0,96246.0,0.82435883]
[1734956945169,0.0041598,96247.0,96246.0,0.82435883]
[1734956945420,0.0031598,96247.0,96246.0,0.82435883]
[1734956945806,0.0041598,96247.0,96246.0,0.82435883]
[1734956946014,0.0031598,96247.0,96246.0,0.82435883]
[1734956946397,0.0041598,96247.0,96246.0,0.82435883]
[1734956946817,0.0051598,96247.0,96246.0,0.82435883]
[1734956947016,0.0011598,96247.0,96246.0,0.82435883]
[1734956947243,0.0001598,96247.0,96246.0,0.82435883]
[1734956948448,0.0011598,96247.0,96246.0,0.82435883]
[1734956948658,0.0001598,96247.0,96246.0,0.82435883]
[1734956948888,0.0001598,96247.0,96246.0,0.82735883]
[1734956949104,0.0001598,96247.0,96246.0,0.3003596]
[1734956949517,0.0001598,96247.0,96246.0,0.0055596]
[1734956949931,0.0001598,96247.0,96246.0,0.0065596]
[1734956950127,0.0001598,96247.0,96246.0,0.09938725]
[1734956950445,0.0001598,96247.0,96246.0,0.09838725]
[1734956950593,0.0001598,96247.0,96246.0,0.09938725]
[1734956951399,0.0001598,96247.0,96246.0,0.0065596]
[1734956951622,0.0001598,96247.0,96246.0,0.0095596]
[1734956951852,0.0001598,96247.0,96246.0,0.0085596]
[1734956952256,0.0021598,96247.0,96246.0,0.0095985]
[1734956952753,0.0002454,96247.0,96246.0,0.0095985]
[1734956952967,0.0022454,96247.0,96246.0,0.0095985]
[1734956953394,0.0022454,96247.0,96246.0,0.0065985]
[1734956953609,0.0042454,96247.0,96246.0,0.0065985]
[1734956953823,0.0062454,96247.0,96246.0,0.0065985]
[1734956954241,0.0092454,96247.0,96246.0,0.0065985]
[1734956954443,0.0022454,96247.0,96246.0,0.0065985]
[1734956954873,0.0052454,96247.0,96246.0,0.0065985]
[1734956955095,0.0032454,96247.0,96246.0,0.0065985]
[1734956955575,0.0042454,96247.0,96246.0,0.0065985]
[1734956955989,0.0032454,96247.0,96246.0,0.0065985]
[1734956956228,0.0002454,96247.0,96246.0,0.0065985]
[1734956956458,0.0042454,96247.0,96246.0,0.0065985]
[1734956957146,0.0002454,96247.0,96246.0,0.0065985]
[1734956957579,0.0022454,96247.0,96246.0,0.0065985]
[1734956958489,0.0032454,96247.0,96246.0,0.0983618]
[1734956958935,0.0022454,96247.0,96246.0,0.0983618]
[1734956959158,0.0002454,96247.0,96246.0,0.0983618]
[1734956959565,0.0002454,96247.0,96246.0,0.0055596]
[1734956960643,0.0002454,96247.0,96246.0,0.00659842]
[1734956962085,0.0002454,96247.0,96246.0,0.0055596]
[1734956962558,0.0012454,96247.0,96246.0,0.0055596]
[1734956962762,0.0022454,96247.0,96246.0,0.0055596]
[1734956963107,0.0032454,96247.0,96246.0,0.0055596]
[1734956963311,0.0012454,96247.0,96246.0,0.0055596]
[1734956963510,0.0002454,96247.0,96246.0,0.0055596]
[1734956963742,0.0012454,96247.0,96246.0,0.0055596]
[1734956964982,0.0012454,96247.0,96244.0,0.0928022]
[1734956965210,0.0012454,96247.0,96246.0,0.00550506]
[1734956965580,0.0002454,96247.0,96246.0,0.00550506]
[1734956965796,0.0002454,96247.0,96243.0,0.01301087]
[1734956966024,0.0002454,96247.0,96246.0,0.00550506]
[1734956966242,0.0002454,96247.0,96242.0,0.0928022]
[1734956966463,0.0062454,96247.0,96244.0,0.00550749]
[1734956966677,0.0022454,96247.0,96242.0,0.0928022]
[1734956967116,0.0042454,96247.0,96242.0,0.0928022]
[1734956967336,0.0042454,96247.0,96243.0,0.00553485]
[1734956967560,0.0072454,96247.0,96243.0,0.00553485]
[1734956967799,0.0072454,96247.0,96245.0,0.0928022]
[1734956968234,0.0072454,96247.0,96246.0,0.00553121]
[1734956968445,0.005,96247.0,96246.0,0.00553121]
[1734956968886,0.001,96247.0,96246.0,0.00553121]
[1734956969102,0.003,96247.0,96246.0,0.00553121]
[1734956969367,0.002,96247.0,96246.0,0.00553121]
[1734956969586,0.004,96247.0,96246.0,0.00553121]
[1734956970254,0.008,96247.0,96246.0,0.00553121]
[1734956971589,0.006,96247.0,96246.0,0.00553121]
[1734956972032,0.002,96247.0,96246.0,0.00553121]
[1734956972254,0.006,96247.0,96243.0,0.0928022]
[1734956972693,0.011,96247.0,96246.0,0.001]
[1734956972926,0.009,96247.0,96246.0,0.001]
[1734956973182,0.009,96247.0,96246.0,0.00653179]
[1734956973183,0.011,96247.0,96246.0,0.00653179]
[1734956973396,0.007,96247.0,96246.0,0.001]
[1734956973546,0.002,96247.0,96246.0,0.00553179]
[1734956973783,0.006,96247.0,96244.0,0.0928022]
[1734956973983,0.006,96247.0,96246.0,0.00553179]
[1734956974191,0.006,96247.0,96245.0,0.005533]
[1734956974397,0.006,96247.0,96246.0,0.00553179]
[1734956974593,0.004,96247.0,96246.0,0.00553179]
[1734956974780,0.004,96247.0,96244.0,0.0928022]
[1734956974983,0.001,96247.0,96246.0,0.00553179]
[1734956975181,0.001,96247.0,96245.0,0.005533]
[1734956975411,0.005,96247.0,96246.0,0.00653179]
[1734956975630,8.56e-05,96248.0,96246.0,0.00553179]
[1734956975824,0.002,96247.0,96244.0,0.0928022]
[1734956976028,0.005,96247.0,96244.0,0.0928022]
[1734956976229,0.005,96247.0,96245.0,0.005533]
[1734956976481,0.007,96247.0,96244.0,0.0928022]
[1734956976829,0.007,96247.0,96245.0,0.005533]
[1734956977062,0.007,96247.0,96245.0,0.0928022]
[1734956977258,8.56e-05,96248.0,96246.0,0.00570299]
[1734956977486,8.56e-05,96247.0,96246.0,0.00570299]
[1734956978830,0.0040856,96247.0,96246.0,0.00570299]
[1734956979057,0.0010856,96247.0,96246.0,0.00570299]
[1734956979293,0.0040856,96247.0,96246.0,0.00570299]
[1734956980014,0.0010856,96247.0,96246.0,0.00570299]
[1734956980245,0.0010856,96247.0,96246.0,0.14494947]
[1734956980482,0.0040856,96247.0,96246.0,0.14494947]
[1734956980973,0.0030856,96247.0,96246.0,0.14494947]
[1734956981210,0.0040856,96247.0,96246.0,0.14494947]
[1734956981671,0.0010856,96247.0,96246.0,0.14494947]
[1734956981917,0.0010856,96247.0,96246.0,0.00570299]
[1734956982216,0.0040856,96247.0,96246.0,0.00570299]
[1734956982456,0.0010856,96247.0,96246.0,0.00570299]
[1734956982698,0.0040856,96247.0,96246.0,0.00570299]
[1734956984359,0.0040856,96247.0,96246.0,0.29434188]
[1734956984580,0.0030856,96247.0,96246.0,0.29330299]
[1734956984816,0.0020856,96247.0,96246.0,0.29330299]
[1734956985008,0.0060856,96247.0,96246.0,0.29330299]
[1734956985784,0.0020856,96247.0,96246.0,0.29330299]
[1734956986002,8.56e-05,96247.0,96246.0,0.63675037]
[1734956986214,0.0030856,96247.0,96246.0,0.63675037]
[1734956986438,0.0040856,96247.0,96246.0,0.63675037]
[1734956987623,0.0030856,96247.0,96246.0,0.63675037]
[1734956988059,0.0020856,96247.0,96246.0,0.82281667]
[1734956988574,0.0060856,96247.0,96246.0,0.82281667]
[1734956989222,0.0060856,96247.0,96246.0,0.63675037]
[1734956990733,0.0040856,96247.0,96246.0,0.63675037]
[1734956990952,0.0050856,96247.0,96246.0,0.63675037]
[1734956991202,0.0010856,96247.0,96246.0,0.63675037]
[1734956991441,0.0030856,96247.0,96246.0,0.63675037]
[1734956991636,0.0010856,96247.0,96246.0,0.63675037]
[1734956992002,0.0030856,96247.0,96246.0,0.63675037]
[1734956994830,0.0020856,96247.0,96246.0,0.63675037]
[1734956995303,8.56e-05,96247.0,96246.0,0.63675037]
[1734956995734,0.0010856,96247.0,96246.0,0.63675037]
[1734956996188,0.0020856,96247.0,96246.0,0.63675037]
[1734956997298,0.0020856,96247.0,96246.0,0.86822034]
[1734956998004,8.56e-05,96247.0,96246.0,0.86822034]
[1734956999154,8.56e-05,96247.0,96246.0,1.16990666]
[1734956999405,8.56e-05,96247.0,96246.0,1.26990666]
[1734956999637,0.18639614,96284.0,96273.0,0.207742]
[1734956999867,0.09337594,96279.0,96273.0,0.207742]
[1734957000108,0.09337594,96279.0,96274.0,0.00543654]
[1734957000776,0.00015977,96279.0,96278.0,0.09296321]
[1734957001966,0.00015977,96279.0,96278.0,0.002]
[1734957002410,0.00115977,96279.0,96278.0,0.009]
[1734957002633,0.00124537,96279.0,96278.0,0.209731]
[1734957003081,0.00224537,96279.0,96278.0,0.009]
[1734957003304,0.00224537,96279.0,96278.0,0.007]
[1734957003736,0.00224537,96279.0,96278.0,0.011]
[1734957010440,0.00224537,96279.0,96278.0,0.0895]
[1734957010663,0.00224537,96279.0,96278.0,0.09053855]
[1734957011344,0.00224537,96279.0,96278.0,0.19452487]
[1734957011588,0.00224537,96279.0,96278.0,0.34452487]
[1734957011813,0.00224537,96279.0,96278.0,0.34348632]
[1734957012275,0.00224537,96279.0,96278.0,0.33948632]
[1734957012496,0.00024537,96279.0,96278.0,0.33248632]
[1734957012950,0.00024537,96279.0,96278.0,0.67437063]
[1734957013394,0.00103997,96308.0,96280.0,0.24957286]
[1734957013620,0.0813855,96309.0,96281.0,0.1050247]
[1734957014122,0.0813855,96309.0,96294.0,0.207696]
[1734957014618,0.0813855,96309.0,96295.0,0.207695]
[1734957015083,0.0010857,96298.0,96295.0,0.207695]
[1734957015545,0.0030857,96298.0,96296.0,0.00518622]
[1734957016227,0.0030857,96298.0,96297.0,0.20872838]
[1734957016436,0.0020857,96298.0,96297.0,0.31167632]
[1734957016697,0.0020857,96298.0,96297.0,0.31679576]
[1734957016915,0.0030857,96298.0,96297.0,0.31679576]
[1734957017364,0.0100857,96298.0,96297.0,0.31679576]
[1734957017589,0.0030857,96298.0,96297.0,0.31679576]
[1734957017811,8.57e-05,96298.0,96297.0,0.85279576]
[1734957018057,0.0080857,96298.0,96297.0,0.85379576]
[1734957018283,0.0120857,96298.0,96297.0,0.85379576]
[1734957019869,0.0120857,96298.0,96297.0,0.54211944]
[1734957020085,0.0120857,96298.0,96297.0,0.001]
[1734957020086,0.01312567,96298.0,96297.0,0.001]
[1734957020305,0.15255101,96298.0,96297.0,0.001]
[1734957020551,0.08892567,96298.0,96297.0,0.001]
[1734957020976,0.08492567,96298.0,96297.0,0.001]
[1734957021205,0.207702,96292.0,96286.0,0.09252461]
[1734957021627,0.415404,96292.0,96279.0,0.01197636]
[1734957021843,0.207711,96288.0,96279.0,0.01197636]
[1734957022074,0.207702,96292.0,96276.0,0.207736]
[1734957023580,0.207702,96292.0,96277.0,0.00103851]
[1734957024017,0.20769,96297.0,96278.0,0.31171632]
[1734957024232,0.20769,96297.0,96280.0,0.207727]
[1734957024474,0.20769,96297.0,96282.0,0.207723]
[1734957024689,8.57e-05,96298.0,96284.0,0.207718]
[1734957024897,8.57e-05,96298.0,96285.0,0.00103846]
[1734957025152,0.2077747,96298.0,96285.0,0.00103846]
[1734957025584,0.001,96297.0,96285.0,0.00103846]
[1734957026040,0.001,96297.0,96285.0,0.00603846]
[1734957026588,0.001,96297.0,96285.0,0.005]
[1734957026589,0.207692,96296.0,96285.0,0.005]
[1734957027064,0.207692,96296.0,96285.0,0.008]
[1734957027484,0.001,96297.0,96287.0,0.207712]
[1734957027698,8.57e-05,96298.0,96286.0,0.0751]
[1734957027910,0.001,96297.0,96286.0,0.0751]
[1734957028567,0.208692,96296.0,96285.0,0.015]
[1734957028784,0.207692,96296.0,96285.0,0.003]
[1734957029246,0.207692,96296.0,96285.0,0.01267043]
[1734957029481,8.57e-05,96298.0,96287.0,0.002]
[1734957029908,0.20769,96297.0,96285.0,0.00103846]
[1734957030112,0.20769,96297.0,96285.0,0.00103847]
[1734957030336,0.20769,96297.0,96285.0,0.00203847]
[1734957030808,8.57e-05,96298.0,96285.0,0.00103847]
[1734957031016,8.57e-05,96298.0,96285.0,0.00403847]
[1734957031232,8.57e-05,96298.0,96290.0,0.207703]
[1734957031875,0.001,96296.0,96290.0,0.207703]
[1734957032935,8.57e-05,96298.0,96290.0,0.207703]
[1734957033276,0.005,96296.0,96290.0,0.207703]
[1734957033503,0.007,96296.0,96286.0,0.207714]
[1734957033709,0.007,96296.0,96287.0,0.00103843]
[1734957033913,0.005,96296.0,96287.0,0.00103843]
[1734957034760,0.0020857,96298.0,96287.0,0.00103843]
[1734957035160,0.0070857,96298.0,96287.0,0.00103843]
[1734957035719,0.003,96296.0,96287.0,0.00103843]
[1734957035921,8.57e-05,96298.0,96287.0,0.00103843]
[1734957036402,0.001,96296.0,96287.0,0.00103843]
[1734957036837,0.0030857,96298.0,96287.0,0.00103843]
[1734957037061,0.0040857,96298.0,96287.0,0.00103843]
[1734957037695,0.0030857,96298.0,96287.0,0.00103843]
[1734957037895,0.004,96296.0,96287.0,0.00103843]
[1734957038133,0.001,96296.0,96286.0,0.207714]
[1734957038383,0.001,96296.0,96289.0,0.1278]
[1734957038606,0.001,96296.0,96289.0,0.12883843]
[1734957039254,0.003,96296.0,96289.0,0.12883843]
[1734957039464,0.003,96296.0,96289.0,0.08103843]
[1734957039745,0.007,96296.0,96289.0,0.00103843]
[1734957039957,0.207708,96289.0,96283.0,0.536]
[1734957040361,0.207705,96291.0,96283.0,0.536]
[1734957040570,0.207705,96291.0,96282.0,0.0118039]
[1734957040954,0.207705,96291.0,96279.0,0.01184179]
[1734957041117,0.207705,96291.0,96279.0,0.0001712]
[1734957041316,0.001,96289.0,96279.0,0.0001712]
[1734957041524,0.001,96289.0,96279.0,0.00120971]
[1734957041731,0.001,96289.0,96280.0,0.207727]
[1734957042175,0.001,96291.0,96281.0,0.00103851]
[1734957042405,0.001,96291.0,96282.0,0.0778]
[1734957042639,0.001,96291.0,96284.0,0.207718]
[1734957043106,0.00112567,96298.0,96284.0,0.207718]
[1734957043332,0.20769,96297.0,96285.0,0.00103846]
[1734957044308,0.0010857,96298.0,96285.0,0.00103846]
[1734957044992,0.003,96297.0,96285.0,0.00103846]
[1734957045500,8.57e-05,96298.0,96285.0,0.00103846]
[1734957045716,0.0030857,96298.0,96285.0,0.00103846]
[1734957045948,0.001,96297.0,96285.0,0.00103846]
[1734957046390,0.003,96297.0,96285.0,0.00103846]
[1734957047517,0.0010857,96298.0,96285.0,0.00103846]
[1734957047746,0.0030857,96298.0,96285.0,0.00103846]
[1734957048204,8.57e-05,96298.0,96285.0,0.00103846]
[1734957048425,0.003,96297.0,96285.0,0.00103846]
[1734957048884,8.57e-05,96298.0,96286.0,0.207714]
[1734957049123,0.001,96297.0,96286.0,0.207714]
[1734957049361,0.001,96297.0,96295.0,0.207694]
[1734957049583,0.0030857,96298.0,96295.0,0.207694]
[1734957049844,0.001,96297.0,96295.0,0.207694]
[1734957050237,0.001,96297.0,96293.0,0.207699]
[1734957050407,0.0030857,96298.0,96293.0,0.207699]
[1734957050626,0.005,96297.0,96293.0,0.207699]
[1734957051296,0.011,96297.0,96295.0,0.001]
[1734957051523,0.009,96297.0,96293.0,0.207699]
[1734957051743,0.009,96297.0,96293.0,0.208699]
[1734957051971,0.012,96297.0,96293.0,0.208699]
[1734957052195,0.006,96297.0,96293.0,0.207699]
[1734957052449,0.014,96297.0,96296.0,0.207692]
[1734957052678,0.002,96297.0,96296.0,0.207692]
[1734957053139,8.57e-05,96298.0,96296.0,0.207692]
[1734957053341,8.57e-05,96298.0,96297.0,0.0815]
[1734957054235,8.57e-05,96298.0,96297.0,0.08253835]
[1734957054653,0.0070857,96298.0,96297.0,0.08353835]
[1734957055101,0.0070857,96298.0,96297.0,0.001]
[1734957055760,0.0100857,96298.0,96297.0,0.00203839]
[1734957056197,0.0070857,96298.0,96297.0,0.00203839]
[1734957056619,0.0100857,96298.0,96297.0,0.00203839]
[1734957056840,0.0100857,96298.0,96297.0,0.001]
[1734957058373,0.0100857,96298.0,96297.0,0.00203835]
[1734957058868,0.0100857,96298.0,96297.0,0.001]
[1734957062205,0.0100857,96298.0,96297.0,0.09376243]
[1734957062410,0.0100857,96298.0,96297.0,0.4064771]
[1734957062664,0.0100857,96298.0,96297.0,0.40543875]
[1734957063058,0.0100857,96298.0,96297.0,0.65506885]
[1734957063275,0.0100857,96298.0,96297.0,0.44737885]
[1734957063522,0.0100857,96298.0,96297.0,0.34339253]
[1734957063742,0.0100857,96298.0,96297.0,0.46539253]
[1734957064397,0.0100857,96298.0,96297.0,0.26214393]
[1734957064608,0.0100857,96298.0,96297.0,0.79814393]
[1734957065708,0.0100857,96298.0,96297.0,0.76298632]
[1734957066597,0.0100857,96298.0,96297.0,1.10539862]
[1734957068338,0.0100857,96298.0,96297.0,1.29092494]
[1734957070292,0.0100857,96298.0,96297.0,1.10539862]
[1734957072632,0.0100857,96298.0,96297.0,1.33735247]
[1734957073289,0.0100857,96298.0,96297.0,1.29155247]
[1734957073716,0.0100857,96298.0,96297.0,0.57536615]
[1734957075358,0.0100857,96298.0,96297.0,0.60799175]
[1734957078556,0.0100857,96298.0,96297.0,0.52899175]
[1734957079230,0.0876857,96298.0,96297.0,0.52899175]
[1734957079470,0.13742567,96298.0,96297.0,0.001]
[1734957080377,0.13042567,96298.0,96296.0,0.13920726]
[1734957080616,0.20769,96297.0,96296.0,0.13920726]
[1734957081068,0.207701,96292.0,96280.0,0.10466253]
[1734957081290,0.207705,96290.0,96280.0,0.10466253]
[1734957081517,0.00103997,96289.0,96280.0,0.09285724]
[1734957082232,0.00103997,96289.0,96278.0,0.09285724]
[1734957082436,0.00103997,96289.0,96280.0,0.002]
[1734957083322,0.20771,96288.0,96280.0,0.002]
[1734957083553,0.20771,96288.0,96279.0,0.01181723]
[1734957084017,0.20771,96288.0,96279.0,0.0001712]
[1734957084990,0.20871,96288.0,96279.0,0.0031712]
[1734957085208,0.20771,96288.0,96279.0,0.0031712]
[1734957085443,0.207695,96295.0,96279.0,0.0031712]
[1734957085658,0.001,96288.0,96280.0,0.0805]
[1734957085908,0.002,96288.0,96280.0,0.0805]
[1734957086872,0.001,96288.0,96280.0,0.0805]
[1734957087081,0.002,96288.0,96280.0,0.0805]
[1734957087500,0.002,96288.0,96283.0,0.03]
[1734957087714,0.001,96288.0,96283.0,0.03]
[1734957087924,0.207704,96291.0,96283.0,0.03]
[1734957088152,0.002,96288.0,96283.0,0.03]
[1734957088795,0.008,96288.0,96283.0,0.03]
[1734957090032,0.002,96288.0,96283.0,0.03]
[1734957090289,0.00103997,96290.0,96283.0,0.03]
[1734957090568,0.207718,96285.0,96283.0,0.033]
[1734957091009,0.207718,96285.0,96283.0,0.03]
[1734957091473,0.00103997,96284.0,96283.0,0.03]
[1734957093780,0.00703997,96284.0,96283.0,0.03]
[1734957094199,0.006,96284.0,96283.0,0.03]
[1734957094356,0.011,96284.0,96283.0,0.03]
[1734957094583,0.003,96284.0,96283.0,0.03]
[1734957095000,0.207718,96285.0,96283.0,0.03]
[1734957095423,0.207718,96285.0,96283.0,0.031]
[1734957095646,0.00103997,96284.0,96283.0,0.031]
[1734957096041,0.09321617,96314.0,96284.0,0.15]
[1734957096288,0.09321617,96314.0,96297.0,0.28449]
[1734957096493,0.09321617,96314.0,96297.0,0.53847632]
[1734957096705,0.09321617,96314.0,96297.0,0.58737632]
[1734957096856,0.09321617,96315.0,96297.0,0.58737632]
[1734957097788,0.09321617,96315.0,96297.0,0.58837632]
[1734957098004,0.000259,96319.0,96297.0,0.93032978]
[1734957098233,0.000259,96319.0,96297.0,0.72263978]
[1734957098447,0.00034524,96309.0,96308.0,0.207667]
[1734957100456,0.00034524,96309.0,96308.0,0.68851724]
[1734957100655,0.00334524,96309.0,96308.0,0.68851724]
[1734957100859,0.00434524,96309.0,96308.0,0.68851724]
[1734957101068,0.00134524,96309.0,96308.0,0.68851724]
[1734957101268,0.00334524,96309.0,96308.0,0.68851724]
[1734957101469,0.00234524,96309.0,96308.0,0.68851724]
[1734957101672,0.00334524,96309.0,96308.0,0.68851724]
[1734957103558,0.00334524,96309.0,96308.0,0.69967154]
[1734957103955,0.00334524,96309.0,96308.0,0.2188213]
[1734957104319,0.00334524,96309.0,96308.0,0.40100762]
[1734957104763,0.00034524,96309.0,96308.0,0.40100762]
[1734957105007,0.00234524,96309.0,96308.0,0.40100762]
[1734957105251,0.00334524,96309.0,96308.0,0.40100762]
[1734957106671,0.00134524,96309.0,96308.0,0.59700762]
[1734957106905,0.00034524,96309.0,96308.0,0.59700762]
[1734957107142,0.00234524,96309.0,96308.0,0.59700762]
[1734957107333,0.00334524,96309.0,96308.0,0.59700762]
[1734957108298,0.00334524,96309.0,96308.0,1.13300762]
[1734957108731,0.00334524,96309.0,96308.0,1.47436388]
[1734957109931,0.00134524,96309.0,96308.0,1.47436388]
[1734957110157,0.00134524,96309.0,96308.0,1.57436388]
[1734957110377,0.00034524,96309.0,96308.0,1.57736388]
[1734957110592,0.00134524,96309.0,96308.0,1.57736388]
[1734957110815,0.00134524,96309.0,96308.0,1.57436388]
[1734957111271,0.00234524,96309.0,96308.0,1.57736388]
[1734957111491,0.00234524,96309.0,96308.0,1.80839957]
[1734957112883,0.00234524,96309.0,96308.0,1.47736388]
[1734957113114,0.000259,96319.0,96308.0,1.26969688]
[1734957113349,0.000259,96319.0,96311.0,0.35766]
[1734957113582,0.000259,96319.0,96311.0,0.46164632]
[1734957114296,0.0001,96329.0,96312.0,0.686]
[1734957114530,0.0001,96329.0,96328.0,0.207623]
[1734957116669,0.0001,96329.0,96328.0,0.357623]
[1734957117153,0.0001,96329.0,96312.0,0.09526989]
[1734957117154,0.207623,96328.0,96312.0,0.09526989]
[1734957117393,0.10502629,96327.0,96312.0,0.09226989]
[1734957117632,0.31265229,96327.0,96312.0,0.10338715]
[1734957117871,0.31265229,96327.0,96316.0,0.09226989]
[1734957117872,0.1267,96325.0,96316.0,0.09226989]
[1734957118129,0.415286,96319.0,96316.0,0.09226989]
[1734957118364,0.207647,96317.0,96316.0,0.09226989]
[1734957118606,0.31163332,96317.0,96316.0,0.09226989]
[1734957118868,0.31163332,96317.0,96312.0,0.008]
[1734957118869,0.10398632,96317.0,96312.0,0.008]
[1734957119105,0.00103997,96317.0,96312.0,0.008]
[1734957119561,0.00103997,96317.0,96312.0,0.003]
[1734957119796,0.334331,96325.0,96312.0,0.003]
[1734957119797,0.00103997,96324.0,96312.0,0.003]
[1734957120059,0.00103997,96324.0,96310.0,0.207661]
[1734957120297,0.00103997,96324.0,96308.0,0.01149827]
[1734957120537,0.207634,96323.0,96316.0,0.004]
[1734957120784,0.00103997,96322.0,96316.0,0.002]
[1734957121017,0.00103997,96322.0,96306.0,0.207669]
[1734957121218,0.00103997,96322.0,96312.0,0.003]
[1734957121486,0.00103997,96322.0,96310.0,0.004]
[1734957121945,0.001,96323.0,96316.0,0.003]
[1734957122159,0.00103997,96322.0,96316.0,0.003]
[1734957123113,0.00103997,96322.0,96316.0,0.006]
[1734957123326,0.31162532,96321.0,96316.0,0.006]
[1734957123549,0.00103997,96320.0,96316.0,0.003]
[1734957123769,0.31162932,96319.0,96306.0,0.01117413]
[1734957123984,0.00103997,96318.0,96312.0,0.002]
[1734957124199,0.207653,96315.0,96299.0,0.0001714]
[1734957124422,0.00103997,96314.0,96299.0,0.01149138]
[1734957124910,0.00103997,96314.0,96299.0,0.00033114]
[1734957124911,0.20869397,96314.0,96299.0,0.00033114]
[1734957125143,0.00103997,96314.0,96312.0,0.002]
[1734957125366,0.00103997,96316.0,96312.0,0.002]
[1734957125583,0.00103997,96315.0,96312.0,0.002]
[1734957125797,0.207654,96314.0,96312.0,0.002]
[1734957126015,0.00103997,96313.0,96312.0,0.002]
[1734957126430,0.00103997,96313.0,96299.0,0.00433114]
[1734957126653,0.00103997,96313.0,96299.0,0.00633114]
[1734957126866,0.207658,96312.0,96299.0,0.00033114]
[1734957127075,0.00103997,96311.0,96299.0,0.00033114]
[1734957127944,0.00103997,96311.0,96299.0,0.00233114]
[1734957128160,0.00103997,96311.0,96299.0,0.00033114]
[1734957128609,0.207662,96310.0,96299.0,0.00033114]
[1734957128867,0.00103997,96309.0,96299.0,0.00033114]
[1734957129348,0.207667,96308.0,96299.0,0.00033114]
[1734957129563,0.00103997,96307.0,96299.0,0.00533114]
[1734957129786,0.00103997,96307.0,96299.0,0.00633114]
[1734957130006,0.41536,96302.0,96299.0,0.00033114]
[1734957130269,0.41536,96302.0,96299.0,0.00233114]
[1734957130270,0.207684,96300.0,96299.0,0.00233114]
[1734957130503,0.31167032,96300.0,96299.0,0.00533114]
[1734957130991,0.31167032,96300.0,96299.0,0.00233114]
[1734957131229,0.0825,96306.0,96299.0,0.00133114]
[1734957131451,0.001,96300.0,96299.0,0.00333114]
[1734957132767,0.00103997,96305.0,96299.0,0.00133114]
[1734957132998,0.00103997,96311.0,96299.0,0.00133114]
[1734957133215,0.0825,96313.0,96299.0,0.00033114]
[1734957133216,0.20459915,96310.0,96299.0,0.00033114]
[1734957133446,0.001,96300.0,96299.0,0.00633114]
[1734957133675,0.00203997,96300.0,96299.0,0.00833114]
[1734957133905,0.00103997,96300.0,96299.0,0.00233114]
[1734957134795,0.00103997,96302.0,96299.0,0.00033114]
[1734957135016,0.41533,96309.0,96299.0,0.00033114]
[1734957135017,0.001,96300.0,96299.0,0.00633114]
[1734957135226,0.00203997,96300.0,96299.0,0.00633114]
[1734957136095,0.31267032,96300.0,96299.0,0.00633114]
[1734957136330,0.31167032,96300.0,96299.0,0.00033114]
[1734957136543,0.46657165,96300.0,96299.0,0.00033114]
[1734957136762,0.51397165,96300.0,96299.0,0.00333114]
[1734957137196,0.51397165,96300.0,96299.0,0.00033114]
[1734957137407,0.51497165,96300.0,96299.0,0.00333114]
[1734957137629,0.44227032,96300.0,96299.0,0.00133114]
[1734957138117,0.44227032,96300.0,96299.0,0.00333114]
[1734957139204,0.44127032,96300.0,96299.0,0.00133114]
[1734957139418,0.44127032,96300.0,96299.0,0.00033114]
[1734957139640,0.44227032,96300.0,96299.0,0.00233114]
[1734957139854,0.44127032,96300.0,96299.0,0.00233114]
[1734957140072,0.44227032,96300.0,96299.0,0.00433114]
[1734957140312,0.44227032,96300.0,96299.0,0.00233114]
[1734957140528,0.44227032,96300.0,96299.0,0.00033114]